bitfinex/quotes_ETHUSD_20220111
["timestamp","ask_amount","ask_price","bid_price","bid_amount"]
[1641940687647,0.1232331,3233.1,3233.0,4.81686879]
[1641940690389,0.1232331,3233.1,3233.0,4.21686879]
[1641940692643,0.1232331,3233.1,3233.0,6.79037535]
[1641940693040,0.1232331,3233.1,3233.0,5.21043864]
[1641940693245,0.1232331,3233.1,3233.0,2.63693208]
[1641940693444,0.1232331,3233.1,3233.0,5.30427058]
[1641940693847,0.1232331,3233.1,3233.0,2.63693208]
[1641940700056,0.1232331,3233.1,3233.0,4.21718325]
[1641940701554,0.1232331,3233.1,3233.0,2.63693208]
[1641940704493,0.1232331,3233.1,3233.0,4.21714241]
[1641940709042,0.1232331,3233.1,3233.0,4.81714241]
[1641940709640,0.1232331,3233.1,3233.0,4.89445241]
[1641940710043,0.1232331,3233.1,3233.0,3.31424208]
[1641940711084,0.1232331,3233.1,3233.0,5.88549299]
[1641940712590,0.1232331,3233.1,3233.0,8.25890663]
[1641940713195,0.1232331,3233.1,3233.0,5.88549299]
[1641940714967,0.1232331,3233.1,3233.0,5.28549299]
[1641940715562,0.1232331,3233.1,3233.0,7.65328331]
[1641940717564,0.1232331,3233.1,3233.0,7.57597331]
[1641940718589,0.1232331,3233.1,3233.0,5.20818299]
[1641940719792,0.1232331,3233.1,3233.0,7.65328331]
[1641940720995,0.1232331,3233.1,3233.0,5.28549299]
[1641940721895,0.1232331,3233.1,3233.0,7.65328331]
[1641940723042,0.1232331,3233.1,3233.0,5.28549299]
[1641940723743,0.1232331,3233.1,3233.0,5.58549299]
[1641940724343,0.1232331,3233.1,3233.0,5.28549299]
[1641940724543,0.1232331,3233.1,3233.0,2.63693208]
[1641940725446,0.1232331,3233.1,3233.0,4.2160778]
[1641940725844,0.1232331,3233.1,3233.0,2.63693208]
[1641940726690,0.1232331,3233.1,3233.0,2.71424208]
[1641940727790,0.1232331,3233.1,3233.0,5.29550635]
[1641940730646,0.1232331,3233.1,3233.0,2.71424208]
[1641940731249,0.1232331,3233.1,3233.0,5.26839833]
[1641940732550,0.1232331,3233.1,3233.0,5.19108833]
[1641940735299,0.1232331,3233.1,3233.0,2.63693208]
[1641940736700,0.1232331,3233.1,3233.0,4.21625878]
[1641940738038,0.1232331,3233.1,3233.0,2.63693208]
[1641940739046,0.1232331,3233.1,3233.0,5.21750574]
[1641940739647,0.1232331,3233.1,3233.0,2.63693208]
[1641940740344,0.1232331,3233.1,3233.0,4.28693208]
[1641940740544,0.1232331,3233.1,3233.0,4.58693208]
[1641940741796,0.1232331,3233.1,3233.0,4.66424208]
[1641940742207,0.1232331,3233.1,3233.0,7.22443584]
[1641940742596,0.1232331,3233.1,3233.0,4.66424208]
[1641940742999,0.1232331,3233.1,3233.0,6.92609093]
[1641940743197,0.1232331,3233.1,3233.0,2.71424208]
[1641940751696,0.1232331,3233.1,3233.0,4.29377796]
[1641940753343,0.1232331,3233.1,3233.0,2.71424208]
[1641940754150,0.1232331,3233.1,3233.0,4.29393997]
[1641940755258,0.1232331,3233.1,3233.0,2.71424208]
[1641940757896,0.1232331,3233.1,3233.0,5.30860188]
[1641940758093,0.1232331,3233.1,3233.0,2.71424208]
[1641940758994,0.1232331,3233.1,3233.0,2.63693208]
[1641940760449,0.1232331,3233.1,3233.0,5.24372963]
[1641940761047,0.1232331,3233.1,3233.0,2.63693208]
[1641940761646,0.1232331,3233.1,3233.0,5.20543747]
[1641940762346,0.1232331,3233.1,3233.0,7.57322779]
[1641940763689,0.1232331,3233.1,3233.0,5.0047224]
[1641940764488,0.1232331,3233.1,3233.0,2.71424208]
[1641940764689,0.1232331,3233.1,3233.0,5.27603502]
[1641940765703,0.1232331,3233.1,3233.0,2.71424208]
[1641940766296,0.1232331,3233.1,3233.0,5.2778215]
[1641940768038,0.1232331,3233.1,3233.0,2.71424208]
[1641940768539,0.1232331,3233.1,3233.0,5.24749136]
[1641940768939,0.1232331,3233.1,3233.0,2.71424208]
[1641940771893,0.1232331,3233.1,3233.0,2.63693208]
[1641940774192,0.1232331,3233.1,3233.0,2.71424208]
[1641940775043,0.1232331,3233.1,3233.0,5.26513277]
[1641940776445,0.1232331,3233.1,3233.0,2.71424208]
[1641940777245,0.1232331,3233.1,3233.0,5.27134811]
[1641940777445,0.1232331,3233.1,3233.0,6.04456811]
[1641940777847,0.1232331,3233.1,3233.0,3.48746208]
[1641940779097,0.1232331,3233.1,3233.0,3.78746208]
[1641940780898,0.1232331,3233.1,3233.0,6.37225986]
[1641940782338,0.1232331,3233.1,3233.0,3.78746208]
[1641940782742,0.1232331,3233.1,3233.0,6.343793]
[1641940783942,0.1232331,3233.1,3233.0,3.78746208]
[1641940785844,0.1232331,3233.1,3233.0,3.48746208]
[1641940786101,0.1232331,3233.1,3233.0,6.07768274]
[1641940786294,0.1232331,3233.1,3233.0,2.71424208]
[1641940787496,0.1232331,3233.1,3233.0,2.63693208]
[1641940789103,0.0732331,3233.1,3233.0,2.63693208]
[1641940789841,0.0732331,3233.1,3233.0,4.21740203]
[1641940791746,0.0232331,3233.1,3233.0,4.21740203]
[1641940797650,0.0232331,3233.1,3233.0,2.63693208]
[1641940800250,0.07732,3233.7,3233.1,1.9]
[1641940800653,0.00682108,3233.6,3233.1,1.9]
[1641940800850,0.07731,3233.5,3233.1,1.9]
[1641940801111,0.07731,3233.5,3232.9,3.623]
[1641940801112,0.08356266,3233.5,3233.2,2.63693208]
[1641940801307,0.00568423,3233.4,3233.2,2.63693208]
[1641940801705,0.00511581,3233.3,3233.0,2.63693208]
[1641940802109,0.00454739,3233.2,3232.9,3.623]
[1641940802414,0.00397896,3233.1,3232.9,3.623]
[1641940802806,0.00341054,3233.0,3232.9,3.623]
[1641940803105,0.00795793,3233.0,3232.9,3.623]
[1641940810203,0.01659353,3233.0,3232.9,3.623]
[1641940816701,0.01659353,3233.0,3232.9,6.16965881]
[1641940816902,0.01659353,3233.0,3232.9,7.75012876]
[1641940817302,0.01659353,3233.0,3232.9,7.83903162]
[1641940824507,0.01659353,3233.0,3232.9,7.91634162]
[1641940825909,0.01659353,3233.0,3232.9,8.21634162]
[1641940826510,0.01659353,3233.0,3232.9,6.63587167]
[1641940827110,0.01659353,3233.0,3232.9,8.21634162]
[1641940827749,0.01659353,3233.0,3232.9,6.63587167]
[1641940828553,0.01659353,3233.0,3232.9,8.21634162]
[1641940829953,0.01659353,3233.0,3232.9,7.91634162]
[1641940830155,0.01659353,3233.0,3232.9,8.21634162]
[1641940830355,0.01659353,3233.0,3232.9,7.91634162]
[1641940831199,0.01659353,3233.0,3232.9,7.83903162]
[1641940832901,0.04390353,3233.7,3233.1,0.7732311]
[1641940833310,0.07731,3234.0,3233.1,1.9513311]
[1641940833702,0.07844684,3234.0,3233.2,2.63556167]
[1641940834101,0.07844684,3234.0,3233.3,0.00284212]
[1641940834701,0.77323,3233.9,3233.3,0.00284212]
[1641940834944,0.07731,3233.8,3233.3,0.00284212]
[1641940843856,0.85054,3233.9,3233.3,0.00284212]
[1641940857546,0.77323,3233.9,3233.3,0.00284212]
[1641940858649,0.07731,3233.8,3233.3,0.00284212]
[1641940860052,0.07731,3233.8,3233.3,0.30284212]
[1641940860253,0.77323,3233.9,3233.3,0.30284212]
[1641940860454,0.77323,3233.9,3233.4,0.0022737]
[1641940860951,0.77323,3233.9,3233.3,0.00284212]
[1641940862226,0.85054,3233.9,3233.3,0.00284212]
[1641940863915,0.77323,3233.9,3233.3,0.77603022]
[1641940864315,0.77323,3233.9,3233.4,0.0022737]
[1641940864715,0.77328,3233.8,3233.4,2.63783537]
[1641940864955,0.77328,3233.8,3233.4,2.63556167]
[1641940865150,0.77328,3233.8,3233.5,0.00170527]
[1641940866355,0.77328,3233.8,3233.3,0.00284212]
[1641940869099,0.77329,3233.7,3233.3,0.00284212]
[1641940878408,0.77329,3233.7,3233.3,2.63840379]
[1641940878908,0.77329,3233.7,3233.4,0.0022737]
[1641940880152,0.77329,3233.7,3233.3,0.00284212]
[1641940881557,0.07731,3234.0,3233.3,0.00284212]
[1641940883607,0.77329,3233.8,3233.3,0.00284212]
[1641940886407,0.77329,3233.8,3233.3,2.63840379]
[1641940886807,0.77329,3233.8,3233.4,0.0022737]
[1641940889656,1.54664,3233.8,3233.4,0.0022737]
[1641940889856,1.62395,3233.8,3233.4,0.0022737]
[1641940890861,1.62395,3233.8,3233.3,0.00284212]
[1641940891116,0.77334,3233.7,3233.3,0.00284212]
[1641940892409,0.07731,3233.6,3233.3,0.00284212]
[1641940893807,0.77342,3233.5,3233.3,0.00284212]
[1641940894608,2.32027,3233.5,3233.3,0.00284212]
[1641940904958,1.54685,3233.5,3233.3,0.00284212]
[1641940906206,0.77334,3233.7,3233.3,0.00284212]
[1641940907907,1.54673,3233.7,3233.3,0.00284212]
[1641940920758,1.54673,3233.7,3233.2,2.63556167]
[1641940925964,0.77334,3233.7,3233.2,2.63556167]
[1641940939309,0.77334,3233.7,3233.1,2.63556167]
[1641940939511,0.77334,3233.7,3233.1,2.93556167]
[1641940939715,0.77334,3233.7,3233.2,0.00341054]
[1641940940359,0.77334,3233.7,3233.3,2.63556167]
[1641940940762,0.77334,3233.7,3233.4,0.0022737]
[1641940941361,0.77334,3233.7,3233.3,0.00284212]
[1641940941763,0.3799033,3233.8,3233.4,2.63556167]
[1641940942160,0.3799033,3233.8,3233.5,0.00170527]
[1641940942760,0.3799033,3233.8,3233.4,0.0022737]
[1641940943364,1.1532033,3233.8,3233.3,0.00284212]
[1641940944823,1.1532033,3233.8,3233.3,2.63840379]
[1641940945228,1.1532033,3233.8,3233.4,0.0022737]
[1641940957889,1.1532033,3233.8,3233.5,0.0513]
[1641940958492,1.1532033,3233.8,3233.6,2.63556167]
[1641940966421,0.3799033,3233.8,3233.6,2.63556167]
[1641940967718,0.3799033,3233.8,3233.6,5.73556167]
[1641940968919,0.3799033,3233.8,3233.7,2.63556167]
[1641940973465,0.3799033,3233.8,3233.7,2.68686167]
[1641940981509,0.3799033,3233.8,3233.7,0.95748017]
[1641940992766,0.3299033,3233.8,3233.7,0.95748017]
[1641941013727,3.01850817,3233.8,3233.7,0.95748017]
[1641941015770,3.01850817,3233.8,3233.7,0.0513]
[1641941016370,4.51850817,3233.8,3233.7,2.68721199]
[1641941017474,3.96270817,3233.8,3233.7,2.68721199]
[1641941017677,3.96270817,3233.8,3233.7,0.0513]
[1641941017879,23.07270817,3233.8,3233.7,0.0513]
[1641941018177,2.0,3233.7,3233.6,3.1]
[1641941018375,25.18590337,3233.7,3232.6,5.53525032]
[1641941018627,0.77361,3233.2,3232.3,2.7796092]
[1641941018826,1.54721,3233.4,3232.3,2.3296092]
[1641941019023,0.07733,3233.3,3232.4,0.00795793]
[1641941019426,0.07733,3233.3,3232.7,2.63620618]
[1641941019628,0.7736,3232.9,3232.7,2.63620618]
[1641941019824,0.7736,3232.9,3232.8,0.00568424]
[1641941020628,0.7736,3232.8,3232.6,0.00682108]
[1641941021028,0.7736,3232.7,3232.6,0.00682108]
[1641941023492,0.7736,3232.8,3232.6,0.00682108]
[1641941025000,1.5472,3232.8,3232.6,0.00682108]
[1641941027525,0.7736,3232.8,3232.6,0.00682108]
[1641941027930,0.7736,3232.8,3232.6,3.10682108]
[1641941028331,0.7736,3232.8,3232.7,0.00625266]
[1641941029030,1.54719,3232.8,3232.7,0.00625266]
[1641941038674,1.62451,3232.8,3232.7,0.00625266]
[1641941039882,1.54719,3232.8,3232.7,0.00625266]
[1641941041738,3.04719,3232.8,3232.7,0.00625266]
[1641941042139,4.04719,3232.8,3232.7,0.00625266]
[1641941042537,2.54719,3232.8,3232.7,0.00625266]
[1641941043542,4.04719,3232.8,3232.7,0.00625266]
[1641941050331,4.12451,3232.8,3232.7,0.00625266]
[1641941053677,4.04719,3232.8,3232.7,0.00625266]
[1641941054483,2.54719,3232.8,3232.7,0.00625266]
[1641941055491,4.04719,3232.8,3232.7,0.00625266]
[1641941057535,2.54719,3232.8,3232.7,0.00625266]
[1641941058336,2.54719,3232.8,3232.6,3.1]
[1641941058536,1.0,3232.7,3232.6,3.1]
[1641941058940,3.32088,3232.8,3232.6,3.10682108]
[1641941059340,3.32088,3232.8,3232.7,0.00625266]
[1641941059538,4.82088,3232.8,3232.7,0.00625266]
[1641941060375,3.32088,3232.8,3232.7,0.00625266]
[1641941061380,4.82088,3232.8,3232.7,0.00625266]
[1641941062583,3.32088,3232.8,3232.7,0.00625266]
[1641941063384,4.82088,3232.8,3232.7,0.00625266]
[1641941064635,4.82088,3232.8,3232.6,2.85625266]
[1641941066439,3.32088,3232.8,3232.6,2.85625266]
[1641941067474,4.82088,3232.8,3232.6,2.85625266]
[1641941068276,0.3,3232.7,3232.6,2.85625266]
[1641941068484,4.87732,3232.7,3232.6,2.85625266]
[1641941068679,5.87732,3232.7,3231.9,5.16464438]
[1641941068879,2.32153,3232.3,3231.9,5.16464438]
[1641941069079,3.32153,3232.3,3232.0,0.00397896]
[1641941070285,0.3,3232.2,3232.0,0.00397896]
[1641941070485,4.77521,3232.1,3231.9,0.00454739]
[1641941070680,4.77521,3232.1,3231.3,5.57854392]
[1641941070681,4.77521,3232.1,3231.4,0.00738951]
[1641941070884,0.3,3232.0,3231.4,0.00738951]
[1641941071159,2.84789,3232.0,3231.4,0.00738951]
[1641941071345,1.84789,3232.0,3231.4,0.00738951]
[1641941071544,1.0,3231.9,3231.4,0.00738951]
[1641941071742,1.84789,3232.0,3231.4,0.00738951]
[1641941071743,2.84789,3232.0,3231.4,0.00738951]
[1641941071943,0.77395,3231.8,3231.4,0.00738951]
[1641941072345,0.77395,3231.8,3231.5,2.63721461]
[1641941072541,1.5479,3231.8,3231.5,2.63721461]
[1641941072743,3.09579,3231.8,3231.6,0.00625266]
[1641941072945,4.09579,3231.8,3231.6,0.00625266]
[1641941073550,1.54789,3231.7,3231.6,0.00625266]
[1641941074145,2.54789,3231.7,3231.6,0.00625266]
[1641941074748,2.54789,3231.7,3231.4,0.00738951]
[1641941075795,1.13237262,3231.5,3231.4,0.00738951]
[1641941076404,1.13237262,3231.5,3231.3,0.00795793]
[1641941078202,0.35843262,3231.5,3231.3,0.00795793]
[1641941078944,0.35843262,3231.5,3231.3,3.10795793]
[1641941079338,0.25191187,3231.5,3231.4,0.00738951]
[1641941089873,0.25191187,3231.5,3231.4,2.64458577]
[1641941106484,1.75191187,3231.5,3231.4,2.64458577]
[1641941106687,2.52583187,3231.5,3231.4,2.64458577]
[1641941109344,3.12485269,3231.5,3231.4,2.63719626]
[1641941109545,3.72387351,3231.5,3231.4,2.63719626]
[1641941110345,4.72387351,3231.5,3231.4,2.63719626]
[1641941110550,2.22387351,3231.5,3231.4,2.63719626]
[1641941111748,1.44995351,3231.5,3231.4,2.63719626]
[1641941118446,1.44995351,3231.5,3231.4,5.18253306]
[1641941118847,1.44995351,3231.5,3231.4,2.63719626]
[1641941119048,1.44995351,3231.5,3231.4,4.28719626]
[1641941119249,1.44995351,3231.5,3231.4,2.63719626]
[1641941119983,1.44995351,3231.5,3231.4,5.15612454]
[1641941120189,1.44995351,3231.5,3231.4,2.63719626]
[1641941123290,1.44995351,3231.5,3231.4,3.71437302]
[1641941123493,1.44995351,3231.5,3231.4,2.63719626]
[1641941123935,1.19804164,3231.5,3231.4,4.68719626]
[1641941124742,1.19804164,3231.5,3231.4,7.27042216]
[1641941125341,1.19804164,3231.5,3231.4,4.68719626]
[1641941125644,1.19804164,3231.5,3231.4,7.27637824]
[1641941129887,1.19804164,3231.5,3231.4,2.63719626]
[1641941130090,1.19804164,3231.5,3231.4,5.18650681]
[1641941133747,1.19804164,3231.5,3231.4,2.63719626]
[1641941145590,2.19804164,3231.5,3231.4,2.63719626]
[1641941146240,2.56431528,3231.5,3231.4,2.63719626]
[1641941150984,1.56431528,3231.5,3231.4,2.63719626]
[1641941151189,2.56431528,3231.5,3231.4,2.63719626]
[1641941151691,1.56431528,3231.5,3231.4,2.63719626]
[1641941151885,2.56431528,3231.5,3231.4,2.63719626]
[1641941153187,1.56431528,3231.5,3231.4,2.63719626]
[1641941154043,2.56431528,3231.5,3231.4,2.63719626]
[1641941155843,1.56431528,3231.5,3231.4,2.63719626]
[1641941156445,2.56431528,3231.5,3231.4,2.63719626]
[1641941160899,3.16431528,3231.5,3231.4,2.63719626]
[1641941161131,5.58903869,3231.5,3231.4,2.63719626]
[1641941161336,6.36316869,3231.5,3231.3,3.1]
[1641941161538,0.77411,3231.4,3231.3,3.1]
[1641941161937,2.7,3231.3,3230.5,0.46154202]
[1641941162147,4.52313082,3231.4,3230.5,0.46154202]
[1641941162148,0.77418,3231.0,3230.5,0.46154202]
[1641941162341,0.77418,3231.0,3230.6,0.00397896]
[1641941162539,1.54836,3231.0,3230.6,0.00397896]
[1641941162939,0.77419,3230.9,3230.6,0.00397896]
[1641941163141,0.77419,3230.9,3230.6,2.64213682]
[1641941163342,1.07419,3230.9,3230.6,2.64213682]
[1641941163540,1.5,3230.7,3230.6,2.63815786]
[1641941163741,1.5,3230.7,3230.5,0.46154202]
[1641941163943,1.5,3230.7,3230.6,0.00397896]
[1641941164544,2.27414,3230.7,3230.6,0.00397896]
[1641941164750,2.27414,3230.7,3230.6,2.63828774]
[1641941164991,3.27414,3230.7,3230.6,2.63828774]
[1641941165490,3.27414,3230.7,3230.0,2.63828774]
[1641941165685,0.77413,3230.5,3230.0,2.63828774]
[1641941165986,1.54825,3230.5,3230.1,0.00284212]
[1641941166592,2.54825,3230.5,3230.0,0.00341054]
[1641941167193,0.59902082,3230.2,3230.0,0.00341054]
[1641941167399,0.59902082,3230.1,3230.0,0.00341054]
[1641941172695,1.19804164,3230.1,3230.0,0.00341054]
[1641941175899,1.19804164,3230.1,3230.0,2.5126329]
[1641941176371,1.19804164,3230.1,3230.0,4.9626329]
[1641941177176,1.19804164,3230.1,3230.0,2.5126329]
[1641941177372,1.19804164,3230.1,3230.0,4.2626329]
[1641941179074,1.19804164,3230.1,3230.0,2.5126329]
[1641941180686,1.19804164,3230.1,3230.0,0.00341054]
[1641941181088,1.19804164,3230.1,3230.0,2.64146515]
[1641941182293,1.19804164,3230.1,3230.0,4.59146515]
[1641941182693,1.0,3231.2,3230.1,3.3]
[1641941182899,1.0,3231.2,3230.1,4.5339]
[1641941183093,0.00284211,3231.1,3230.2,2.74861297]
[1641941183495,1.0,3231.2,3230.2,2.74861297]
[1641941183496,0.00227369,3231.0,3230.3,0.00170527]
[1641941183945,0.00170527,3230.9,3230.3,2.63975988]
[1641941184146,0.00170527,3230.9,3230.4,2.5016975]
[1641941184344,0.00113684,3230.8,3230.4,2.50283435]
[1641941184945,0.00113684,3230.8,3230.4,0.00113685]
[1641941185147,0.00113684,3230.8,3230.4,2.53280409]
[1641941185552,0.00113684,3230.8,3230.5,2.63805461]
[1641941186349,0.00113684,3230.8,3230.6,2.50777548]
[1641941186550,0.00113684,3230.8,3230.5,2.63805461]
[1641941186851,0.00113684,3230.8,3230.4,0.00113685]
[1641941187049,0.00113684,3230.8,3230.4,2.54419283]
[1641941187491,0.00113684,3230.8,3230.6,2.63805461]
[1641941187992,0.00113684,3230.8,3230.5,2.63805461]
[1641941188394,0.00113684,3230.8,3230.6,2.49266008]
[1641941188795,0.00113684,3230.8,3230.5,2.63805461]
[1641941189196,0.00113684,3230.8,3230.6,2.51815031]
[1641941189599,0.00113684,3230.8,3230.7,4.32375]
[1641941190500,0.00113684,3230.8,3230.7,6.96180461]
[1641941193148,0.00113684,3230.8,3230.7,9.61809021]
[1641941196401,0.00113684,3230.8,3230.7,11.49789941]
[1641941197002,0.00113684,3230.8,3230.7,9.91809021]
[1641941197202,0.00113684,3230.8,3230.7,13.85609021]
[1641941197802,0.00113684,3230.8,3230.7,20.17892491]
[1641941198003,1.5,3232.1,3230.8,3.5]
[1641941198202,1.5,3232.1,3231.3,1.5471722]
[1641941198402,0.00682109,3232.0,3231.3,1.5471722]
[1641941198656,0.00682109,3232.0,3231.4,4.2474]
[1641941198851,0.00625266,3231.9,3231.4,4.2474]
[1641941199250,0.00568424,3231.8,3231.4,6.88545461]
[1641941199657,0.00511581,3231.7,3231.5,2.63805461]
[1641941200051,0.00454739,3231.6,3231.5,2.63805461]
[1641941230375,1.5,3232.1,3231.5,2.63805461]
[1641941230774,1.50738951,3232.1,3231.5,2.63805461]
[1641941233999,2.28108951,3232.1,3231.5,2.63805461]
[1641941235202,1.50738951,3232.1,3231.5,2.63805461]
[1641941238551,0.00738951,3232.1,3231.5,2.63805461]
[1641941240502,1.50738951,3232.1,3231.5,2.63805461]
[1641941241504,0.00738951,3232.1,3231.5,2.63805461]
[1641941242506,1.50738951,3232.1,3231.5,8.24331016]
[1641941243506,0.00738951,3232.1,3231.6,2.63805461]
[1641941244547,1.50738951,3232.1,3231.6,2.63805461]
[1641941245447,0.00738951,3232.1,3231.6,2.63805461]
[1641941260661,1.5,3232.2,3231.6,2.63805461]
[1641941260968,0.00738951,3232.1,3231.6,2.63805461]
[1641941261362,0.00682109,3232.0,3231.6,2.63805461]
[1641941261764,0.00625266,3231.9,3231.6,2.63805461]
[1641941262166,0.00568424,3231.8,3231.6,2.63805461]
[1641941262598,0.00511581,3231.7,3231.6,4.18503011]
[1641941262801,0.00511581,3231.7,3231.6,4.48503011]
[1641941263002,0.00511581,3231.7,3231.6,7.0174497]
[1641941263611,0.00511581,3231.7,3231.6,7.0947997]
[1641941264803,0.00511581,3231.7,3231.6,7.3947997]
[1641941265803,0.00511581,3231.7,3231.6,4.86238011]
[1641941268270,0.00511581,3231.7,3231.6,6.61238011]
[1641941268875,0.00511581,3231.7,3231.6,6.31238011]
[1641941273650,0.00511581,3231.7,3231.6,6.23503011]
[1641941275857,0.00511581,3231.7,3231.6,6.53503011]
[1641941277260,0.00511581,3231.7,3231.6,9.04097931]
[1641941277705,1.45511581,3232.2,3231.7,3.55]
[1641941277903,1.45511581,3232.2,3231.8,0.77345]
[1641941278104,0.0022737,3232.1,3231.8,0.77345]
[1641941278303,0.0022737,3232.1,3231.8,1.5468824]
[1641941278507,0.00170528,3232.0,3231.8,1.5468824]
[1641941278709,0.00170528,3232.0,3231.9,2.63805461]
[1641941278910,1.45511581,3232.2,3231.9,2.63805461]
[1641941279111,1.45511581,3232.2,3231.9,2.93805461]
[1641941279315,0.0022737,3232.1,3231.9,2.93805461]
[1641941279710,0.00170528,3232.0,3231.9,2.93805461]
[1641941279910,0.00170528,3232.0,3231.9,3.31540461]
[1641941280311,0.00170528,3232.0,3231.9,0.67735]
[1641941280513,0.00170528,3232.0,3231.9,0.37735]
[1641941281151,0.00170528,3232.0,3231.9,3.82735]
[1641941281957,1.44627893,3232.2,3232.0,2.45]
[1641941282155,1.44627893,3232.2,3232.0,3.9967725]
[1641941282355,1.44627893,3232.2,3232.0,4.2967725]
[1641941282555,1.5,3232.6,3232.0,3.52339]
[1641941282754,1.5,3232.6,3232.0,6.4863]
[1641941283360,1.5,3232.6,3232.2,0.77335]
[1641941283658,1.5,3232.6,3232.2,1.07335]
[1641941284913,1.5,3232.6,3232.3,0.07734]
[1641941285103,1.5,3232.6,3232.4,18.88326]
[1641941285307,1.5,3232.6,3232.5,3.6]
[1641941285506,0.00795792,3233.4,3232.5,3.6]
[1641941285707,3.14866974,3233.7,3232.6,1.1675]
[1641941285906,3.3141,3233.8,3232.6,1.1675]
[1641941286109,0.00909477,3233.6,3232.6,1.1675]
[1641941286307,0.00909477,3233.6,3232.7,0.7732093]
[1641941286508,0.00852635,3233.5,3232.7,0.7732093]
[1641941286906,0.77326,3233.9,3232.7,0.7732093]
[1641941286907,0.00795792,3233.4,3232.7,0.7732093]
[1641941287311,0.0073895,3233.3,3232.7,0.7732093]
[1641941287709,0.00682108,3233.2,3232.7,1.0732093]
[1641941287908,0.00682108,3233.2,3232.8,0.07731]
[1641941288111,0.00625265,3233.1,3232.8,0.07731]
[1641941288512,0.00568423,3233.0,3232.8,0.07731]
[1641941288950,0.00511581,3232.9,3232.8,0.07731]
[1641941289150,0.00511581,3232.9,3232.8,3.67731]
[1641941289353,0.72837581,3233.9,3232.9,3.6]
[1641941289561,1.5,3234.0,3232.9,3.9]
[1641941289762,0.00511581,3233.8,3232.9,3.9]
[1641941290159,0.00454738,3233.7,3232.9,3.9]
[1641941290561,0.00397896,3233.6,3232.9,6.4118362]
[1641941290759,0.00397896,3233.6,3233.0,1.1882]
[1641941290960,0.00341054,3233.5,3233.1,2.66930915]
[1641941291362,0.00284211,3233.4,3233.1,2.66930915]
[1641941291560,0.00284211,3233.4,3233.1,3.44242275]
[1641941291762,0.00227369,3233.3,3233.1,1.5462336]
[1641941291959,0.00227369,3233.3,3233.2,4.82395631]
[1641941292164,0.34952467,3234.2,3233.2,2.3]
[1641941292599,0.00682108,3234.1,3233.2,2.3]
[1641941293003,0.00625265,3234.0,3233.2,2.3]
[1641941293204,0.00625265,3234.0,3233.2,5.4]
[1641941293405,0.00568423,3233.9,3233.2,5.4]
[1641941293807,0.00511581,3233.8,3233.2,5.4]
[1641941294205,0.00454738,3233.7,3233.2,5.4]
[1641941294608,0.00397896,3233.6,3233.2,5.4]
[1641941295013,0.34952467,3234.2,3233.3,2.53301501]
[1641941295014,0.00341054,3233.5,3233.3,2.53301501]
[1641941295208,0.00341054,3233.5,3233.3,2.53864705]
[1641941295407,0.00284211,3233.4,3233.3,2.53864705]
[1641941295612,0.00284211,3233.4,3233.3,5.17521964]
[1641941298359,0.00284211,3233.4,3233.3,2.53864705]
[1641941298558,0.00284211,3233.4,3233.3,2.52361033]
[1641941299762,0.00284211,3233.4,3233.2,7.5778]
[1641941300226,0.00227369,3233.3,3233.2,7.5778]
[1641941302833,0.00227369,3233.3,3233.2,10.1703458]
[1641941303429,0.00227369,3233.3,3233.2,12.80669768]
[1641941304957,0.00227369,3233.3,3233.2,10.1703458]
[1641941305365,0.00227369,3233.3,3233.2,10.9434458]
[1641941305961,0.00227369,3233.3,3233.2,8.3509]
[1641941306366,0.00227369,3233.3,3233.2,10.93525534]
[1641941306565,0.00227369,3233.3,3233.2,8.3509]
[1641941306964,0.00227369,3233.3,3233.2,8.9509]
[1641941307421,0.00227369,3233.3,3233.2,11.67538634]
[1641941307611,0.00227369,3233.3,3233.2,10.0319]
[1641941307809,0.00227369,3233.3,3233.2,12.66820337]
[1641941309216,0.00227369,3233.3,3233.2,30.77820337]
[1641941309617,0.00227369,3233.3,3233.2,31.77820337]
[1641941310623,7.369e-05,3233.3,3233.2,31.77820337]
[1641941315702,7.369e-05,3233.3,3233.2,35.7322269]
[1641941316505,4.4767,3235.2,3233.4,18.11]
[1641941316704,4.4767,3235.2,3234.3,1.5455743]
[1641941316910,0.00852635,3234.8,3234.3,1.5455743]
[1641941317102,0.00852635,3234.8,3234.4,0.3]
[1641941317303,1.5,3235.3,3234.4,0.3]
[1641941317304,0.00795793,3234.7,3234.4,0.3]
[1641941317504,6.4883314,3235.7,3234.3,3.65]
[1641941317505,3.91540106,3235.7,3234.3,3.65]
[1641941317706,0.76537221,3235.7,3234.4,3.0908209]
[1641941317903,0.00284212,3235.2,3234.7,0.772733]
[1641941318204,0.95284212,3235.8,3234.8,0.0022737]
[1641941318653,0.95625266,3235.8,3234.8,0.0022737]
[1641941319056,0.77283,3235.7,3234.8,0.0022737]
[1641941319458,0.00227369,3235.6,3234.8,0.0022737]
[1641941319854,0.00170527,3235.5,3234.8,0.0022737]
[1641941320255,0.00113684,3235.4,3234.8,0.0022737]
[1641941320657,0.00227369,3235.6,3234.8,0.0022737]
[1641941321061,0.00170527,3235.5,3234.8,0.0022737]
[1641941321459,0.00113684,3235.4,3234.8,0.0022737]
[1641941321860,0.00284211,3235.7,3234.8,0.0022737]
[1641941322264,0.00227369,3235.6,3234.8,0.0022737]
[1641941322535,0.00170527,3235.5,3234.8,0.0022737]
[1641941322927,0.00113684,3235.4,3234.8,0.0022737]
[1641941323328,0.00284211,3235.7,3234.8,0.0022737]
[1641941323528,0.00284211,3235.7,3234.8,3.1022737]
[1641941323732,0.00227369,3235.6,3234.8,3.1022737]
[1641941323929,0.00227369,3235.6,3234.9,0.00170527]
[1641941324130,0.00170527,3235.5,3234.9,0.00170527]
[1641941324531,0.00113684,3235.4,3234.9,0.00170527]
[1641941324932,0.00284211,3235.7,3234.9,0.00170527]
[1641941325333,0.00227369,3235.6,3234.9,0.00170527]
[1641941325635,0.00170527,3235.5,3234.9,0.00170527]
[1641941326036,0.00113684,3235.4,3234.9,0.00170527]
[1641941326456,0.00284211,3235.7,3234.9,0.00170527]
[1641941326857,0.00227369,3235.6,3234.9,0.00170527]
[1641941327271,0.00170527,3235.5,3234.9,0.00170527]
[1641941327659,0.00113684,3235.4,3234.9,0.00170527]
[1641941328060,0.00284211,3235.7,3234.9,0.00170527]
[1641941328462,0.00227369,3235.6,3234.9,0.00170527]
[1641941328865,0.00170527,3235.5,3234.9,0.00170527]
[1641941329361,0.00113684,3235.4,3234.9,0.00170527]
[1641941329761,0.00284211,3235.7,3234.9,0.00170527]
[1641941330208,0.00227369,3235.6,3234.9,0.00170527]
[1641941330708,0.31169432,3235.8,3234.9,0.00170527]
[1641941330709,0.00170527,3235.5,3234.9,0.00170527]
[1641941331108,0.00113684,3235.4,3234.9,0.00170527]
[1641941331307,0.00113684,3235.4,3234.9,0.77437757]